lending/lending_fUSD_20251016
["ID","MTS","AMOUNT","RATE_DAILY","PERIOD"]
[391532790,1760633550127,-3485.78,0.00030716,120]
[391532791,1760633550167,-2115.96,0.00030716,120]
[391532792,1760633550213,-500.0,0.00030716,120]
[391532793,1760633550256,-3485.78,0.00030716,120]
[391532794,1760633550298,-2115.96,0.00030716,120]
[391532795,1760633550340,-500.0,0.00030716,120]
[391532796,1760633550381,-3485.78,0.00030716,120]
[391532797,1760633550424,-2115.96,0.00030716,120]
[391532798,1760633550465,-500.26588249,0.00030716,120]
[391532799,1760633550506,-500.0,0.00030716,120]
[391532800,1760633550546,-2115.96,0.00030716,120]
[391532801,1760633550586,-3485.78,0.00030716,120]
[391532802,1760633550745,-500.0,0.00030716,120]
[391532803,1760633550789,-2115.96,0.00030716,120]
[391532804,1760633550834,-3485.78,0.00030716,120]
[391532805,1760633550877,-500.0,0.00030716,120]
[391532806,1760633550921,-3485.78,0.00030716,120]
[391532807,1760633550968,-2116.05232694,0.00030716,120]
[391532808,1760633551011,-500.0,0.00030716,120]
[391532809,1760633551055,-3485.78,0.00030716,120]
[391532810,1760633551098,-500.0,0.00030716,120]
[391532811,1760633551140,-3485.78,0.00030716,120]
[391532812,1760633551182,-500.0,0.00030716,120]
[391532813,1760633551225,-500.0,0.00030716,120]
[391532814,1760633551267,-3485.78,0.00030716,120]
[391532815,1760633551311,-500.0,0.00030716,120]
[391532816,1760633551354,-3226.26,0.00030716,120]
[391532817,1760633551396,-500.0,0.00030716,120]
[391532818,1760633551440,-3485.78,0.00030716,120]
[391532819,1760633551483,-500.0,0.00030716,120]
[391532820,1760633551528,-3226.26,0.00030716,120]
[391532821,1760633551574,-500.0,0.00030716,120]
[391532822,1760633551619,-817.13,0.00030716,120]
[391532823,1760633551662,-3485.78,0.00030716,120]
[391532824,1760633551711,-328.72,0.00030716,120]
[391532825,1760633551755,-500.0,0.00030716,120]
[391532826,1760633551803,-3226.26,0.00030716,120]
[391532827,1760633551848,-817.13,0.00030716,120]
[391532828,1760633551893,-500.0,0.00030716,120]
[391532829,1760633551935,-3485.78,0.00030716,120]
[391532830,1760633551977,-500.0,0.00030716,120]
[391532831,1760633552020,-729.21,0.00030716,120]
[391532832,1760633552063,-3226.26,0.00030716,120]
[391532833,1760633552106,-817.13,0.00030716,120]
[391532834,1760633552150,-245.78431809,0.00030716,120]
[391532835,1760633552194,-500.0,0.00030716,120]
[391532836,1760633552239,-3485.78,0.00030716,120]
[391532837,1760633552283,-729.21,0.00030716,120]
[391532838,1760633552325,-3226.26,0.00030716,120]
[391532839,1760633552369,-817.13,0.00030716,120]
[391532840,1760633552412,-3485.78,0.00030716,120]
[391532841,1760633552456,-607.78918666,0.00030716,120]
[391532842,1760633552499,-729.21,0.00030716,120]
[391532843,1760633552541,-590.86,0.00030716,120]
[391532844,1760633552583,-3226.26,0.00030716,120]
[391532845,1760633552627,-817.13,0.00030716,120]
[391532846,1760633552678,-3485.78,0.00030716,120]
[391532847,1760633552724,-590.86,0.00030716,120]
[391532848,1760633552770,-729.21,0.00030716,120]
[391532849,1760633552811,-3226.26,0.00030716,120]
[391532850,1760633552854,-521.68894831,0.00030716,120]
[391532851,1760633552898,-817.13,0.00030716,120]
[391532852,1760633552942,-3485.78,0.00030716,120]
[391532853,1760633552986,-590.86,0.00030716,120]
[391532854,1760633553036,-729.21,0.00030716,120]
[391532855,1760633553081,-3226.26,0.00030716,120]
[391532856,1760633553129,-817.13,0.00030716,120]
[391532857,1760633553171,-3485.78,0.00030716,120]
[391532858,1760633553220,-590.86,0.00030716,120]
[391532859,1760633553265,-729.21,0.00030716,120]
[391532860,1760633553308,-3226.26,0.00030716,120]
[391532861,1760633553353,-817.13,0.00030716,120]
[391532862,1760633553397,-3485.78,0.00030716,120]
[391532863,1760633553456,-590.86,0.00030716,120]
[391532864,1760633553501,-729.21,0.00030716,120]
[391532865,1760633553543,-3226.26,0.00030716,120]
[391532866,1760633553586,-817.13,0.00030716,120]
[391532867,1760633553629,-3485.78,0.00030716,120]
[391532868,1760633553676,-181.84,0.00030716,120]
[391532869,1760633553721,-590.86,0.00030716,120]
[391532870,1760633553764,-729.21,0.00030716,120]
[391532871,1760633553807,-3226.26,0.00030716,120]
[391532872,1760633553852,-817.13,0.00030716,120]
[391532873,1760633553895,-3485.78,0.00030716,120]
[391532874,1760633553939,-590.86,0.00030716,120]
[391532875,1760633553981,-729.21,0.00030716,120]
[391532876,1760633554024,-3226.26,0.00030716,120]
[391532877,1760633554066,-817.13,0.00030716,120]
[391532878,1760633554115,-3485.78,0.00030716,120]
[391532879,1760633554159,-590.86,0.00030716,120]
[391532880,1760633554207,-729.21,0.00030716,120]
[391532881,1760633554252,-3226.26,0.00030716,120]
[391532882,1760633554299,-817.13,0.00030716,120]
[391532883,1760633554345,-3485.78,0.00030716,120]
[391532884,1760633554388,-590.86,0.00030716,120]
[391532885,1760633554432,-729.21,0.00030716,120]
[391532886,1760633554475,-3226.26,0.00030716,120]
[391532887,1760633554518,-817.13,0.00030716,120]
[391532888,1760633554560,-3485.78,0.00030716,120]
[391532889,1760633554604,-729.21,0.00030716,120]
[391532890,1760633554649,-590.86,0.00030716,120]
[391532891,1760633554703,-3226.26,0.00030716,120]
[391532892,1760633554754,-817.13,0.00030716,120]
[391532893,1760633554801,-3485.86100179,0.00030716,120]
[391532894,1760633554848,-729.21,0.00030716,120]
[391532895,1760633554895,-590.86,0.00030716,120]
[391532896,1760633554941,-3226.26,0.00030716,120]
[391532897,1760633554987,-817.13,0.00030716,120]
[391532898,1760633555037,-729.21,0.00030716,120]
[391532899,1760633555083,-590.86,0.00030716,120]
[391532900,1760633555129,-3226.26,0.00030716,120]
[391532901,1760633555174,-817.13,0.00030716,120]
[391532902,1760633555224,-729.21,0.00030716,120]
[391532903,1760633555270,-3226.26,0.00030716,120]
[391532904,1760633555318,-590.86,0.00030716,120]
[391532905,1760633555646,-817.13,0.00030716,120]
[391532906,1760633555690,-729.21,0.00030716,120]
[391532907,1760633555736,-3226.26,0.00030716,120]
[391532908,1760633555786,-590.86,0.00030716,120]
[391532909,1760633555832,-817.13,0.00030716,120]
[391532910,1760633555876,-729.21,0.00030716,120]
[391532911,1760633555923,-3226.26,0.00030716,120]
[391532912,1760633555970,-590.86,0.00030716,120]
[391532913,1760633556014,-817.13,0.00030716,120]
[391532914,1760633556059,-729.21,0.00030716,120]
[391532915,1760633556102,-3226.26,0.00030716,120]
[391532916,1760633556149,-817.13,0.00030716,120]
[391532917,1760633556196,-729.21,0.00030716,120]
[391532918,1760633556239,-3226.26,0.00030716,120]
[391532919,1760633556283,-817.13,0.00030716,120]
[391532920,1760633556328,-590.86,0.00030716,120]
[391532921,1760633556373,-729.21,0.00030716,120]
[391532922,1760633556418,-3226.30760845,0.00030716,120]
[391532923,1760633556467,-817.13,0.00030716,120]
[391532924,1760633556513,-590.86,0.00030716,120]
[391532925,1760633556557,-729.21,0.00030716,120]
[391532926,1760633556601,-817.13,0.00030716,120]
[391532927,1760633556644,-590.86,0.00030716,120]
[391532928,1760633556688,-729.21,0.00030716,120]
[391532929,1760633556735,-1580.91,0.00030716,120]
[391532930,1760633556781,-817.34898337,0.00030716,120]
[391532931,1760633556828,-590.86,0.00030716,120]
[391532932,1760633556876,-729.21,0.00030716,120]
[391532933,1760633556941,-1580.91,0.00030716,120]
[391532934,1760633556990,-590.86,0.00030716,120]
[391532935,1760633557045,-729.21582342,0.00030716,120]
[391532936,1760633557093,-1580.91,0.00030716,120]
[391532937,1760633557143,-590.86,0.00030716,120]
[391532938,1760633557191,-1580.91,0.00030716,120]
[391532939,1760633557241,-2931.94,0.00030716,120]
[391532940,1760633557291,-590.86,0.00030716,120]
[391532941,1760633557344,-1580.91,0.00030716,120]
[391532942,1760633557393,-2931.94,0.00030716,120]
[391532943,1760633557442,-1580.91,0.00030716,120]
[391532944,1760633557501,-2931.94,0.00030716,120]
[391532945,1760633557562,-590.86,0.00030716,120]
[391532946,1760633557625,-2931.94,0.00030716,120]
[391532947,1760633557685,-1580.91,0.00030716,120]
[391532948,1760633557738,-590.87904871,0.00030716,120]
[391532949,1760633557794,-2931.94,0.00030716,120]
[391532950,1760633557847,-1580.91,0.00030716,120]
[391532951,1760633557904,-500.0,0.00030716,120]
[391532952,1760633557959,-1580.91,0.00030716,120]
[391532953,1760633558013,-2931.94,0.00030716,120]
[391532954,1760633558070,-500.0,0.00030716,120]
[391532955,1760633558127,-208.61,0.00030716,120]
[391532956,1760633558182,-500.0,0.00030716,120]
[391532957,1760633558239,-1580.91,0.00030716,120]
[391532958,1760633558295,-2931.94,0.00030716,120]
[391532959,1760633558349,-349.93,0.00030716,120]
[391532960,1760633558414,-1580.91,0.00030716,120]
[391532961,1760633558478,-500.0,0.00030716,120]
[391532962,1760633558542,-2931.94,0.00030716,120]
[391532963,1760633558605,-500.0,0.00030716,120]
[391532964,1760633558670,-1580.91,0.00030716,120]
[391532965,1760633558732,-2931.94,0.00030716,120]
[391532966,1760633558790,-500.0,0.00030716,120]
[391532967,1760633558854,-2931.94,0.00030716,120]
[391532968,1760633558913,-1580.91,0.00030716,120]
[391532969,1760633558974,-500.0,0.00030716,120]
[391532970,1760633559046,-1580.91,0.00030716,120]
[391532971,1760633559110,-2931.94,0.00030716,120]
[391532972,1760633559169,-500.0,0.00030716,120]
[391532973,1760633559232,-1580.91,0.00030716,120]
[391532974,1760633559298,-2931.94,0.00030716,120]
[391532975,1760633559359,-500.0,0.00030716,120]
[391532976,1760633559426,-688.4,0.00030716,120]
[391532977,1760633559488,-2931.94,0.00030716,120]
[391532978,1760633559550,-1580.91,0.00030716,120]
[391532979,1760633559610,-500.0,0.00030716,120]
[391532980,1760633559673,-500.0,0.00030716,120]
[391532981,1760633559743,-688.4,0.00030716,120]
[391532982,1760633559808,-534.88,0.00030716,120]
[391532983,1760633559871,-1580.91,0.00030716,120]
[391532984,1760633559937,-500.0,0.00030716,120]
[391532985,1760633560002,-500.0,0.00030716,120]
[391532986,1760633560066,-1348.66,0.00030716,120]
[391532987,1760633560132,-688.4,0.00030716,120]
[391532988,1760633560201,-1580.91,0.00030716,120]
[391532989,1760633560268,-500.0,0.00030716,120]
[391532990,1760633560339,-433.13,0.00030716,120]
[391532991,1760633560410,-1348.66,0.00030716,120]
[391532992,1760633560474,-688.4,0.00030716,120]
[391532993,1760633561051,-2931.94,0.00030716,120]
[391532994,1760633561109,-500.0,0.00030716,120]
[391532995,1760633561173,-1580.91,0.00030716,120]
[391532996,1760633561233,-1348.66,0.00030716,120]
[391532997,1760633561289,-688.4,0.00030716,120]
[391532998,1760633561346,-2931.94,0.00030716,120]
[391532999,1760633561409,-500.0,0.00030716,120]
[391533000,1760633561468,-1580.91,0.00030716,120]
[391533001,1760633561526,-1348.66,0.00030716,120]
[391533002,1760633561585,-688.4,0.00030716,120]
[391533003,1760633561641,-2931.94,0.00030716,120]
[391533004,1760633561698,-500.0,0.00030716,120]
[391533005,1760633561757,-1580.91,0.00030716,120]
[391533006,1760633561814,-1348.66,0.00030716,120]
[391533007,1760633561873,-688.4,0.00030716,120]
[391533008,1760633561929,-2931.94,0.00030716,120]
[391533009,1760633561990,-500.0,0.00030716,120]
[391533010,1760633562046,-1580.91,0.00030716,120]
[391533011,1760633562099,-1348.66,0.00030716,120]
[391533012,1760633562152,-688.4,0.00030716,120]
[391533013,1760633562203,-2931.94,0.00030716,120]
[391533014,1760633562252,-1580.91,0.00030716,120]
[391533015,1760633562300,-600.0,0.00030716,120]
[391533016,1760633562350,-1348.66,0.00030716,120]
[391533017,1760633562399,-688.4,0.00030716,120]
[391533018,1760633562447,-2931.94,0.00030716,120]
[391533019,1760633562494,-1580.96219976,0.00030716,120]
[391533020,1760633562544,-1348.66,0.00030716,120]
[391533021,1760633562591,-688.4,0.00030716,120]
[391533022,1760633562639,-2931.94,0.00030716,120]
[391533023,1760633562689,-1348.66,0.00030716,120]
[391533024,1760633562736,-688.4,0.00030716,120]
[391533025,1760633562786,-2931.94,0.00030716,120]
[391533026,1760633562834,-1348.66,0.00030716,120]
[391533027,1760633562881,-688.4,0.00030716,120]
[391533028,1760633562931,-1348.66,0.00030716,120]
[391533029,1760633562978,-688.4,0.00030716,120]
[391533030,1760633563023,-1348.66,0.00030716,120]
[391533031,1760633563070,-688.4,0.00030716,120]
[391533032,1760633563115,-1348.66,0.00030716,120]
[391533033,1760633563162,-688.4,0.00030716,120]
[391533034,1760633563209,-1348.66,0.00030716,120]
[391533035,1760633563256,-688.4,0.00030716,120]
[391533036,1760633563302,-1348.66,0.00030716,120]
[391533037,1760633563350,-916.04,0.00030716,120]
[391533038,1760633563398,-688.4,0.00030716,120]
[391533039,1760633563444,-500.0,0.00030716,120]
[391533040,1760633563489,-1348.66,0.00030716,120]
[391533041,1760633563535,-688.4,0.00030716,120]
[391533042,1760633563579,-916.04,0.00030716,120]
[391533043,1760633563624,-500.0,0.00030716,120]
[391533044,1760633563670,-1348.66,0.00030716,120]
[391533045,1760633563716,-688.4,0.00030716,120]
[391533046,1760633563760,-917.7,0.00030716,120]
[391533047,1760633563809,-916.04,0.00030716,120]
[391533048,1760633563854,-1348.66,0.00030716,120]
[391533049,1760633563896,-688.4,0.00030716,120]
[391533050,1760633563940,-917.7,0.00030716,120]
[391533051,1760633563984,-916.04,0.00030716,120]
[391533052,1760633564028,-1348.66,0.00030716,120]
[391533053,1760633564073,-688.4,0.00030716,120]
[391533054,1760633564118,-916.04,0.00030716,120]
[391533055,1760633564164,-917.7,0.00030716,120]
[391533056,1760633564209,-688.4,0.00030716,120]
[391533057,1760633564254,-1348.66,0.00030716,120]
[391533058,1760633564296,-916.04,0.00030716,120]
[391533059,1760633564341,-917.7,0.00030716,120]
[391533060,1760633564390,-688.4,0.00030716,120]
[391533061,1760633564441,-2931.94,0.00030716,120]
[391533062,1760633564487,-1348.66,0.00030716,120]
[391533063,1760633564534,-916.04,0.00030716,120]
[391533064,1760633564582,-917.7,0.00030716,120]
[391533065,1760633564746,-688.46199119,0.00030716,120]
[391533066,1760633564793,-2931.94,0.00030716,120]
[391533067,1760633564841,-1348.66,0.00030716,120]
[391533068,1760633564887,-916.13,0.00030716,120]
[391533069,1760633564939,-1757.81739849,0.00030716,120]
[391533070,1760633572204,-338.32484125,0.00013699,2]
[391533071,1760633572215,-174.35515875,0.00013699,2]
[391533072,1760633572225,-121.253455,0.00015068,2]
[391533073,1760633572237,-73.746545,0.00015068,2]
[391533074,1760633572247,-184.16180656,0.00017261,2]
[391533075,1760633572257,-837.67965497,0.00017261,2]
[391533076,1760633572270,-1162.32034503,0.00017261,2]
[391533077,1760633572279,-1289.33830204,0.00017261,2]
[391533078,1760633572291,-381.50450315,0.00017261,2]
[391533079,1760633572303,-308.458,0.00017261,2]
[391533080,1760633572315,-20.69919481,0.00017261,2]
[391533081,1760633572324,-2000.0,0.00017261,2]
[391533082,1760633572334,-288.04532236,0.00017261,2]
[391533083,1760633572345,-1711.95467764,0.00017261,2]
[391533084,1760633572355,-2000.0,0.00017261,2]
[391533085,1760633572364,-260.0,0.00018,2]
[391533086,1760633572374,-146.08896634,0.00018112,2]
[391533087,1760633572386,-329.48376183,0.00018112,2]
[391533088,1760633572395,-72.30623817,0.00018177,2]
[391533089,1760633572407,-300.62308745,0.00018177,2]
[391533090,1760633572416,-188.31762203,0.000182,2]
[391533091,1760633572427,-71.68237797,0.000182,2]
[391533092,1760633572436,-260.0,0.000184,2]
[391533093,1760633572448,-260.0,0.000186,2]
[391533094,1760633572457,-2667.90390854,0.00018649,2]
[391533095,1760633572466,-499.28832195,0.00018649,2]
[391533096,1760633572477,-300.34751347,0.00018649,2]
[391533097,1760633572492,-5852.88835788,0.00018649,2]
[391533098,1760633572503,-3347.4658067,0.00018649,2]
[391533099,1760633572512,-260.0,0.000188,2]
[391533100,1760633572523,-563.47522033,0.00019094,2]
[391533101,1760633572533,-188.0,0.00019164,2]
[391533102,1760633572543,-322.6107,0.00019165,2]
[391533103,1760633572552,-1000.0,0.00019165,2]
[391533104,1760633572562,-1000.0,0.00019165,2]
[391533105,1760633572571,-1000.0,0.00019165,2]
[391533106,1760633572583,-74.58536293,0.00019165,2]
[391533107,1760633572595,-925.41463707,0.00019165,2]
[391533108,1760633572605,-850.16329385,0.00019165,2]
[391533109,1760633572615,-324.9758056,0.00019165,2]
[391533110,1760633572626,-250.0,0.00019165,2]
[391533111,1760633572635,-250.0,0.00019165,2]
[391533112,1760633572645,-250.0,0.00019165,2]
[391533113,1760633572654,-250.0,0.00019165,2]
[391533114,1760633572664,-250.0,0.00019165,2]
[391533115,1760633572673,-262.37632027,0.00019165,2]
[391533116,1760633572684,-250.0,0.00019165,2]
[391533117,1760633572697,-250.0,0.00019165,2]
[391533118,1760633572708,-250.0,0.00019165,2]
[391533119,1760633572717,-250.0,0.00019165,2]
[391533120,1760633572727,-299.8631288,0.00019165,2]
[391533121,1760633572736,-250.0,0.00019165,2]
[391533122,1760633572746,-250.0,0.00019165,2]
[391533123,1760633572755,-250.0,0.00019165,2]
[391533124,1760633572765,-250.0,0.00019165,2]
[391533125,1760633572774,-250.0,0.00019165,2]
[391533126,1760633572784,-250.0,0.00019165,2]
[391533127,1760633572947,-250.0,0.00019165,2]
[391533128,1760633572957,-250.0,0.00019165,2]
[391533129,1760633572967,-250.0,0.00019165,2]
[391533130,1760633572976,-250.0,0.00019165,2]
[391533131,1760633572986,-250.0,0.00019165,2]
[391533132,1760633572995,-384.01823747,0.00019165,2]
[391533133,1760633573004,-250.0,0.00019165,2]
[391533134,1760633573015,-250.0,0.00019165,2]
[391533135,1760633573025,-250.0,0.00019165,2]
[391533136,1760633573035,-250.0,0.00019165,2]
[391533137,1760633573045,-250.0,0.00019165,2]
[391533138,1760633573054,-250.0,0.00019165,2]
[391533139,1760633573064,-250.0,0.00019165,2]
[391533140,1760633573073,-500.0,0.00019178,2]
[391533141,1760633573083,-500.0,0.00019178,2]
[391533142,1760633573092,-500.0,0.00019178,2]
[391533143,1760633573102,-500.0,0.00019178,2]
[391533144,1760633573112,-500.0,0.00019178,2]
[391533145,1760633573121,-500.0,0.00019178,2]
[391533146,1760633573131,-500.0,0.00019178,2]
[391533147,1760633573141,-500.0,0.00019178,2]
[391533148,1760633573152,-500.0,0.00019178,2]
[391533149,1760633573163,-500.0,0.00019178,2]
[391533150,1760633573172,-500.0,0.00019178,2]
[391533151,1760633573182,-500.0,0.00019178,2]
[391533152,1760633573195,-500.0,0.00019178,2]
[391533153,1760633573205,-500.0,0.00019178,2]
[391533154,1760633573215,-151.0,0.00019178,2]
[391533155,1760633573225,-500.0,0.00019686,2]
[391533156,1760633573235,-156.587,0.00019726,2]
[391533157,1760633573245,-166.66,0.00019756,2]
[391533158,1760633573255,-195.0,0.000198,2]
[391533159,1760633573265,-10637.95,0.00019864,2]
[391533160,1760633573274,-1195.85,0.00020005,2]
[391533161,1760633573284,-755.18526075,0.0002001,2]
[391533162,1760633573293,-703.57,0.0002002,2]
[391533163,1760633573304,-859.41,0.00020093,30]
[391533164,1760633573317,-166.66,0.00020172,2]
[391533165,1760633573326,-512.68,0.00020187,2]
[391533166,1760633573337,-815.18,0.0002026,2]
[391533167,1760633573346,-1050.82,0.00020263,2]
[391533168,1760633573356,-162.380719,0.00020274,2]
[391533169,1760633573366,-150.0,0.00020282,2]
[391533170,1760633573375,-1050.25,0.0002039,2]
[391533171,1760633573384,-344.9,0.0002042,2]
[391533172,1760633573393,-334.5472959,0.00020534,2]
[391533173,1760633573402,-412.69,0.00020556,2]
[391533174,1760633573412,-166.66,0.00020588,2]
[391533175,1760633573422,-168.0,0.00020673,2]
[391533176,1760633573431,-168.0,0.00020698,2]
[391533177,1760633573441,-168.0,0.00020738,2]
[391533178,1760633573453,-1266.0,0.00020817,2]
[391533179,1760633573462,-749.0,0.00020817,2]
[391533180,1760633573473,-1411.31,0.00020817,2]
[391533181,1760633573482,-1546.0,0.00020817,2]
[391533182,1760633573493,-571.0,0.00020817,2]
[391533183,1760633573503,-1309.0,0.00020817,2]
[391533184,1760633573516,-6436.0,0.00020817,2]
[391533185,1760633573526,-902.0,0.00020817,2]
[391533186,1760633573535,-168.3888056,0.00020822,2]
[391533187,1760633573545,-158.86,0.00020916,2]
[391533188,1760633573555,-947.76563047,0.00020927,2]
[391533189,1760633573566,-166.66,0.00021004,2]
[391533190,1760633573576,-280.0,0.00021008,2]
[391533191,1760633573586,-168.0,0.00021063,2]
[391533192,1760633573596,-174.61919141,0.0002137,2]
[391533193,1760633573606,-546.62,0.00021383,2]
[391533194,1760633573616,-150.0,0.00021383,2]
[391533195,1760633573626,-150.0,0.00021386,2]
[391533196,1760633573636,-300.0,0.00021386,2]
[391533197,1760633573647,-166.66,0.0002142,2]
[391533198,1760633573657,-451.74062,0.000216,2]
[391533199,1760633573666,-2087.9055,0.00021616,2]
[391533200,1760633573677,-1126.69629523,0.00021641,2]
[391533201,1760633573687,-1053.8687,0.00021716,2]
[391533202,1760633573701,-14669.9923,0.00021716,2]
[391533203,1760633573711,-1000.0,0.00021716,2]
[391533204,1760633573722,-2500.0,0.0002172,2]
[391533205,1760633573732,-168.0,0.00021768,2]
[391533206,1760633573742,-182.0,0.00021779,2]
[391533207,1760633573755,-280.0,0.00021795,2]
[391533208,1760633573765,-1309.79507648,0.00021809,2]
[391533209,1760633573776,-500.0,0.00021815,2]
[391533210,1760633573786,-500.0,0.00021815,2]
[391533211,1760633573796,-500.0,0.00021815,2]
[391533212,1760633573806,-1000.0,0.00021817,2]
[391533213,1760633573816,-500.0,0.00021824,2]
[391533214,1760633573826,-200.0,0.00021824,2]
[391533215,1760633573836,-1000.0,0.00021826,2]
[391533216,1760633573846,-166.66,0.00021836,2]
[391533217,1760633573857,-1141.04242266,0.00021843,2]
[391533218,1760633573867,-346.92554585,0.00021903,2]
[391533219,1760633573877,-500.0,0.00021915,2]
[391533220,1760633573887,-500.0,0.00021915,2]
[391533221,1760633573897,-500.0,0.00021915,2]
[391533222,1760633573916,-224.78,0.00021915,2]
[391533223,1760633573933,-500.0,0.00021915,2]
[391533224,1760633573946,-500.0,0.00021915,2]
[391533225,1760633573956,-1308.863,0.00021915,2]
[391533226,1760633573967,-177.819,0.00021915,2]
[391533227,1760633573977,-500.0,0.00021916,2]
[391533228,1760633573986,-186.56,0.00021916,2]
[391533229,1760633573997,-437.64542458,0.00021916,2]
[391533230,1760633574008,-253.25765105,0.00021916,2]
[391533231,1760633574019,-500.0,0.00021916,2]
[391533232,1760633574030,-308.77136125,0.00021916,2]
[391533233,1760633574040,-500.0,0.00021916,2]
[391533234,1760633574050,-500.0,0.00021916,2]
[391533235,1760633574060,-500.0,0.00021916,2]
[391533236,1760633574071,-279.6445733,0.00021916,2]
[391533237,1760633574082,-150.0,0.00021917,2]
[391533238,1760633574092,-591.87086658,0.00021917,2]
[391533239,1760633574102,-150.0,0.00021917,2]
[391533240,1760633574114,-18529.94778244,0.00021917,2]
[391533241,1760633574123,-1981.31,0.00021917,2]
[391533242,1760633574134,-1981.31,0.00021917,4]
[391533243,1760633574145,-1981.31,0.00021917,6]
[391533244,1760633574155,-1981.31,0.00021917,8]
[391533245,1760633574165,-1981.31,0.00021917,10]
[391533246,1760633574175,-500.0,0.00021917,2]
[391533247,1760633574185,-500.0,0.00021917,2]
[391533248,1760633574197,-500.0,0.00021917,2]
[391533249,1760633574207,-500.0,0.00021917,2]
[391533250,1760633574217,-500.0,0.00021917,2]
[391533251,1760633574227,-500.0,0.00021917,2]
[391533252,1760633574237,-500.0,0.00021917,2]
[391533253,1760633574249,-500.0,0.00021917,2]
[391533254,1760633574259,-500.0,0.00021917,2]
[391533255,1760633574270,-500.0,0.00021917,2]
[391533256,1760633574280,-500.0,0.00021917,2]
[391533257,1760633574291,-500.0,0.00021917,2]
[391533258,1760633574302,-281.84843475,0.00021917,2]
[391533259,1760633574312,-600.0,0.00021918,2]
[391533260,1760633574323,-181.08010149,0.00021918,2]
[391533261,1760633574333,-168.0,0.0002194,2]
[391533262,1760633574343,-1000.0,0.00021952,2]
[391533263,1760633574354,-150.0,0.00021973,2]
[391533264,1760633574364,-151.14944807,0.00021973,2]
[391533265,1760633574375,-150.77597293,0.00021973,2]
[391533266,1760633574385,-202.01765236,0.00021973,2]
[391533267,1760633574395,-206.69073684,0.00021973,2]
[391533268,1760633574405,-150.0,0.00021973,2]
[391533269,1760633574416,-150.0,0.00021973,2]
[391533270,1760633574425,-150.0,0.00021973,2]
[391533271,1760633574435,-500.0,0.00021997,2]
[391533272,1760633574454,-500.0,0.00021997,2]
[391533273,1760633574464,-500.0,0.00021997,2]
[391533274,1760633574475,-1981.31,0.00021998,12]
[391533275,1760633574485,-500.0,0.00021998,2]
[391533276,1760633574495,-1981.31,0.00021999,14]
[391533277,1760633574506,-1981.31,0.00021999,16]
[391533278,1760633574516,-1981.31,0.00021999,18]
[391533279,1760633574526,-1981.31,0.00021999,20]
[391533280,1760633574536,-1981.31,0.00021999,22]
[391533281,1760633574546,-500.0,0.00021999,2]
[391533282,1760633574556,-175.9,0.00021999,2]
[391533283,1760633574566,-3042.20792577,0.00022,4]
[391533284,1760633574576,-497.88948116,0.00022,4]
[391533285,1760633574587,-4944.7513529,0.00022,2]
[391533286,1760633574598,-6734.47975655,0.00022,2]
[391533287,1760633574614,-555.3655506,0.00022,2]
[391533288,1760633574626,-951.31643728,0.00022,2]
[391533289,1760633574638,-21117.41232967,0.00022,2]